Cogmind - Beta 16 @@@ ROGUE MODE // 2025.12.29 @ 23:30:15 Player: sercli123 Result: Destroyed by DZ-ZE3(x) with Makeshift Spear Performance ------------- Evolutions (0) 0 Regions Visited (4) 800 Robots Destroyed (9) 45 Value Destroyed (137) 137 Prototype IDs (1) 20 Alien Tech Used (0) 0 Bonus (366) 366 TOTAL SCORE: 1368 Bonus ------- Follower Combat Kills 66 Registered with UFD 300 Cogmind --------- Core Integrity 0/250 Matter 285/300 Energy 160/160 System Corruption 1% Temperature Cool (0) Movement Core (500) Ox9 Location -7/Scraptown Parts ------- > --- POWER (1) -------- Light Fission Core > --- PROPULSION (2) --- (None) > --- UTILITY (2) ------ Large Storage Unit Expert System (Blank) > --- WEAPON (2) ------- Hammer > --- INVENTORY (15) --- Fission Core Improved Heat Sink Targeting Computer Weapon Cycler Utility Shielding Light Armor Plating Layered Medium Armor Plating Force Field A0-MCA's Component Scanner Proton Cannon Flak Cannon Rocket Launcher Long-range Missile Launcher Multitool Power Sword Peak State ------------ > --- POWER ------------ Light Fission Core > --- PROPULSION ------- Light Treads Compact Wheel > --- UTILITY ---------- Large Storage Unit Expert System > --- WEAPON ----------- Beam Rifle Hammer > --- INVENTORY -------- Fission Core Improved Heat Sink Targeting Computer Weapon Cycler Utility Shielding Light Armor Plating Layered Medium Armor Plating Force Field A0-MCA's Component Scanner Proton Cannon Flak Cannon Rocket Launcher Long-range Missile Launcher Multitool Power Sword [Rating: 23] Favorites ----------- Power Light Ion Engine Engine Light Ion Engine Power Core Light Fission Core Propulsion Light Treads Treads Light Treads Wheel Compact Wheel Utility Large Storage Unit Device Structural Scanner Storage Large Storage Unit Processor Expert System Weapon Beam Rifle Energy Gun Beam Rifle Ballistic Gun Light Assault Rifle Impact Weapon Hammer Build | -11 -10 -10 -10 -7 ------- Run | Yrd Mat Min Sub Scr Slots Evolved . | . . . . . Power . | . . . . . Propulsion . | . . . . . Utility . | . . . . . Weapon . | . . . . . Parts Attached 17 | 5 4 4 1 3 Power 3 | 1 . . . 2 Engine 1 | 1 . . . . Core 2 | . . . . 2 Reactor . | . . . . . Propulsion 4 | 2 . 1 1 . Treads 2 | 1 . 1 . . Leg . | . . . . . Wheel 2 | 1 . . 1 . Hover . | . . . . . Flight . | . . . . . Utility 4 | . 3 . . 1 Device 1 | . 1 . . . Storage 2 | . 2 . . . Processor 1 | . . . . 1 Hackware . | . . . . . Protection . | . . . . . Artifact . | . . . . . Weapon 6 | 2 1 3 . . Energy Gun 2 | . 1 1 . . Energy Cannon . | . . . . . Ballistic Gun 3 | 2 . 1 . . Ballistic Cannon . | . . . . . Launcher . | . . . . . Special Weapon . | . . . . . Impact Weapon 1 | . . 1 . . Slashing Weapon . | . . . . . Piercing Weapon . | . . . . . Special Melee Weapon . | . . . . . Unidentified Prototypes 1 | . . . . 1 Parts Lost 4 | . . . 1 3 Power . | . . . . . Propulsion 3 | . . . 1 2 Utility . | . . . . . Weapon 1 | . . . . 1 Highest Loss Streak 3 | . . . 1 3 To Critical Strikes . | . . . . . Average Backups 9 | 2 4 6 8 11 Power 1 | . 1 1 1 1 Propulsion 1 | . 2 2 2 1 Utility 2 | . . . 1 3 Weapon 3 | . 1 2 3 4 Tool/Special . | . . . . . Unused Backups 17 | . . . . 17 Power 2 | . . . . 2 Propulsion 1 | . . . . 1 Utility 8 | . . . . 8 Weapon 5 | . . . . 5 Tool/Special 1 | . . . . 1 Average Slot Usage (%) 98 | . 89 100 100 99 Engine 10 | . 14 14 14 7 Core 3 | . . . . 6 Treads 14 | . 14 14 14 14 Wheel 13 | . 14 14 14 13 Device 12 | . 4 14 14 13 Storage 14 | . 14 14 14 14 Energy Gun 13 | . 13 14 14 13 Ballistic Gun 5 | . 14 14 3 . Impact Weapon 9 | . . . 10 14 Peak Build Rating 23 | 5 7 9 10 23 Average Rating 10 | 3 6 7 9 12 On Entrance 6 | . 5 7 9 9 Avg Prop Armor Cover (%) 14 | 15 13 12 14 15 Naked Turns . | . . . . . Heaviest Build 36 | 5 27 30 30 36 Greatest Support 20 | 10 10 10 16 20 Greatest Overweight (x) 2 | . 2 2 2 2 Average Overweight (x) 1 | . 1 2 1 1 Largest Inventory Capacity 15 | 5 15 15 15 15 Average Capacity 14 | 5 14 15 15 15 Most Carried 15 | 4 5 8 9 15 Average Carried 9 | 3 4 6 8 11 Final Capacity 15 | 5 15 15 15 15 Final Carried 15 | 4 5 8 9 15 Class Distribution -------------------- 100% | Mutant Dominant Class ---------------- Mutant | -10/Materials Mutant | -10/Mines Mutant | -10/Subcaves Mutant | -7/Scraptown Resources | -11 -10 -10 -10 -7 ----------- Run | Yrd Mat Min Sub Scr Matter Collected 414 | 250 49 44 71 . Remotely . | . . . . . Salvage Created 319 | . 162 53 104 . Parts 19 | . 8 5 6 . Haulers Intercepted 2 | . 2 . . . Recyclers Shooed . | . . . . . Parts Field Recycled . | . . . . . Retrieved Matter . | . . . . . Parts Self-Destructed 6 | . . . 6 . Prevented . | . . . . . Parts Restored . | . . . . . Kills | -11 -10 -10 -10 -7 ------- Run | Yrd Mat Min Sub Scr Combat Hostiles Destroyed 5 | . . 3 2 . Guns 5 | . . 3 2 . Classes Destroyed 5 | . 3 1 1 . Hauler 2 | . 2 . . . Recycler 1 | . 1 . . . Watcher 1 | . 1 . . . Swarmer 3 | . . 3 . . Grunt 2 | . . . 2 . Best Kill Streak 3 | . 2 3 2 . Combat Bots Only 3 | . . 3 2 . Max Kills in Single Turn 1 | . 1 1 1 . Gunslinging . | . . . . . Exploded . | . . . . . Melee . | . . . . . Uniques/NPCs Destroyed . | . . . . . Combat | -11 -10 -10 -10 -7 -------- Run | Yrd Mat Min Sub Scr Hostile Shots Fired 73 | . . 17 29 27 Missed 25 | . . 2 10 13 Hits 48 | . . 15 19 14 Melee 6 | . . . . 6 Projectile 42 | . . 15 19 8 Critical Strikes 4 | . . 1 2 1 Damage Taken 791 | . 16 170 284 321 Core 266 | . . 30 97 139 Absorbed by Shields . | . . . . . Core Remaining (%) 100 | 100 . . . . Volleys Fired 35 | . 17 7 11 . Largest 2 | . 2 2 2 . Hottest 79 | . 70 79 79 . Shots Fired 70 | . 34 14 22 . Gun 70 | . 34 14 22 . Cannon . | . . . . . Launcher . | . . . . . Special . | . . . . . Kinetic 35 | . 17 7 11 . Thermal 35 | . 17 7 11 . Explosive . | . . . . . Electromagnetic . | . . . . . Robot Hit Streak 10 | . 10 3 7 . Robot Miss Streak 5 | . 5 4 4 . Penetration Max . | . . . . . Secondary Targets . | . . . . . Shots Hit Robots 38 | . 19 7 12 . Core Hits 17 | . 7 6 4 . Critical Kills . | . . . . . Critical Parts Destroyed . | . . . . . Critical Strikes 1 | . . 1 . . Burn 1 | . . 1 . . Melee Attacks 4 | . . 1 2 1 Impact 4 | . . 1 2 1 Slashing . | . . . . . Piercing . | . . . . . Sneak Attacks . | . . . . . Combat Hostiles . | . . . . . Follow-up Attacks . | . . . . . Damage Inflicted 481 | . 210 81 190 . Guns 481 | . 210 81 190 . Cannons . | . . . . . Explosions . | . . . . . Melee . | . . . . . Ramming . | . . . . . Kinetic 196 | . 61 32 103 . Thermal 285 | . 149 49 87 . Explosive . | . . . . . Electromagnetic . | . . . . . Impact . | . . . . . Slashing . | . . . . . Piercing . | . . . . . Highest Corruption 1 | . . . . 1 Average Corruption 1 | . . . . 1 Corruption Purged . | . . . . . Corruption Blocked . | . . . . . Overload Shots . | . . . . . Overflow Damage . | . . . . . Projectiles . | . . . . . Explosions . | . . . . . Melee . | . . . . . Knockbacks . | . . . . . Impact . | . . . . . Kinetic . | . . . . . Secondary . | . . . . . Self-Inflicted Damage . | . . . . . Shots . | . . . . . Rammed . | . . . . . Targets Rammed . | . . . . . Kicked . | . . . . . Crushed . | . . . . . Highest Temperature 80 | . 80 66 13 . Average Temperature 27 | . 26 31 13 . Received Heat Transfer 207 | . . 54 153 . Siege Activations . | . . . . . Martial Activations . | . . . . . Shielding Activations . | . . . . . Robots Disrupted . | . . . . . Combat Hostiles . | . . . . . Robots Corrupted . | . . . . . Combat Hostiles . | . . . . . Parts Fried . | . . . . . Impact Corruptions . | . . . . . Robots Melted . | . . . . . Combat Hostiles . | . . . . . Parts Melted 1 | . . 1 . . Heat Transferred 888 | . 444 222 222 . Parts Sabotaged . | . . . . . Parts Stolen . | . . . . . Parts Stripped . | . . . . . Power Chain Reactions . | . . . . . Alert | -11 -10 -10 -10 -7 ------- Run | Yrd Mat Min Sub Scr Maximum Alert Level . | . . . . . Low Security (%) 100 | 100 100 100 . . Level 1 . | . . . . . Level 2 . | . . . . . Level 3 . | . . . . . Level 4 . | . . . . . Level 5 . | . . . . . High Security . | . . . . . Max Security . | . . . . . Peak Influence 76 | . 15 76 . . Initial 1 | . . 1 . . Average 10 | . 1 19 . . Influence Increases 218 | . 41 127 50 . Destroy 0b10 Robot/C 140 | . . 100 40 . Destroy 0b10 Robot/NC 20 | . 20 . . . Destroy Leader 26 | . 6 10 10 . Allied During Kill 2 | . . 2 . . Partial Spotted 30 | . 15 15 . . Influence Decreases 218 | . 37 131 50 . Entered New Map 3 | . . 3 . . Time Decay 205 | . 37 128 40 . Lost Part 10 | . . . 10 . Squads Dispatched 2 | . 2 . . . Investigation 1 | . 1 . . . Extermination . | . . . . . Reinforcement 1 | . 1 . . . Assault . | . . . . . Garrison . | . . . . . Intercept . | . . . . . Searches Triggered . | . . . . . Construction Impeded . | . . . . . Haulers Reinforced . | . . . . . Active Scanning Responses . | . . . . . Cargo Convoy Interrupts . | . . . . . Stealth | -11 -10 -10 -10 -7 --------- Run | Yrd Mat Min Sub Scr Distress Signals . | . . . . . Communications Jammed . | . . . . . Distress Signals . | . . . . . Times Spotted 19 | . 6 5 4 4 Peak Tracking Total 6 | . 2 3 2 6 Tactical Retreats . | . . . . . Traps | -11 -10 -10 -10 -7 ------- Run | Yrd Mat Min Sub Scr Traps Triggered 1 | . 1 . . . Indirectly . | . . . . . Trap Hack Attempts . | . . . . . Triggered . | . . . . . Disarmed . | . . . . . Reprogrammed . | . . . . . Reused . | . . . . . Traps Extracted . | . . . . . Installed . | . . . . . Triggered . | . . . . . Machines | -11 -10 -10 -10 -7 ---------- Run | Yrd Mat Min Sub Scr Machines Disabled 1 | . . . . 1 Max in Single Turn 1 | . . . . 1 Machines Repaired . | . . . . . Machines Dismantled . | . . . . . Machines Sabotaged . | . . . . . Overloaded Fab Kills . | . . . . . Hacking | -11 -10 -10 -10 -7 --------- Run | Yrd Mat Min Sub Scr Machines Accessed 4 | . 2 . . 2 Terminals 2 | . 2 . . . Fabricators . | . . . . . Repair Stations . | . . . . . Recycling Units . | . . . . . Scanalyzers . | . . . . . Garrison Access . | . . . . . Total Hacks 23 | . 4 . . 19 Successful 21 | . 2 . . 19 Failed 2 | . 2 . . . Catastrophic . | . . . . . Database Lockouts . | . . . . . Manual 4 | . 4 . . . Terminals 4 | . 4 . . . Fabricators . | . . . . . Repair Stations . | . . . . . Recycling Units . | . . . . . Scanalyzers . | . . . . . Garrison Access . | . . . . . Terminal Hacks 21 | . 2 . . 19 Record 19 | . . . . 19 Alert Level 1 | . 1 . . . Recall Reinforcements 1 | . 1 . . . Fabricator Hacks . | . . . . . Repair Station Hacks . | . . . . . Recycling Unit Hacks . | . . . . . Scanalyzer . | . . . . . Garrison Access Hacks . | . . . . . Unauthorized Hacks . | . . . . . Terminals . | . . . . . Fabricators . | . . . . . Repair Stations . | . . . . . Recycling Units . | . . . . . Scanalyzers . | . . . . . Garrison Access . | . . . . . Data Cores Recovered . | . . . . . Used . | . . . . . Hacking Detections 2 | . 2 . . . Full Trace Events . | . . . . . Feedback Events . | . . . . . Feedback Blocked . | . . . . . Robot Schematics Acquired . | . . . . . Robots Built . | . . . . . Authchips . | . . . . . Time . | . . . . . Total Robot Build Rating . | . . . . . Part Schematics Acquired . | . . . . . Parts Built . | . . . . . Authchips . | . . . . . Time . | . . . . . Total Part Build Rating . | . . . . . Part Studies Acquired . | . . . . . Parts Repaired . | . . . . . Time . | . . . . . Parts Recycled . | . . . . . Recycled Matter . | . . . . . Retrieved Matter . | . . . . . Retrieved Components . | . . . . . Parts Scanalyzed . | . . . . . Part Schematics Acquired . | . . . . . Parts Damaged . | . . . . . Bothacking | -11 -10 -10 -10 -7 ------------ Run | Yrd Mat Min Sub Scr Used RIF Installer . | . . . . . Robots Hacked . | . . . . . Non-combat . | . . . . . Combat . | . . . . . Robot Hacks Applied . | . . . . . Relay Couplers Released . | . . . . . Fabnet Peak Effective % . | . . . . . Robots Rewired . | . . . . . Allies Hacked . | . . . . . Hacks Repelled . | . . . . . Allies | -11 -10 -10 -10 -7 -------- Run | Yrd Mat Min Sub Scr Total Allies 1 | . . 1 . . Largest Group 1 | . . 1 . . Highest-Rated Group 31 | . . 31 . . Highest-Rated Ally 31 | . . 31 . . Total Orders . | . . . . . Ally Attacks 4 | . . 4 . . Total Damage 85 | . . 85 . . Kills 2 | . . 2 . . Allies Corrupted . | . . . . . Allies Melted . | . . . . . Intel | -11 -10 -10 -10 -7 ------- Run | Yrd Mat Min Sub Scr Active Infowar (turns) 2161 | . 119 400 382 1260 Structural 2161 | . 119 400 382 1260 Robot Analysis Total . | . . . . . Derelict Logs Recovered 3 | . . 1 2 . Drone Launches . | . . . . . Drone Recoveries . | . . . . . Exploration | -11 -10 -10 -10 -7 ------------- Run | Yrd Mat Min Sub Scr Turns Passed 2500 | 40 377 400 382 1301 Spaces Moved 1975 | 38 300 314 280 1043 Core 6 | 6 . . . . Treads 2 | . . . . 2 Legs . | . . . . . Wheels 1967 | 32 300 314 280 1041 Hover . | . . . . . Flight . | . . . . . Fastest Speed 50 | 50 80 110 110 115 Average Speed 115 | 75 107 110 114 121 Slowest Speed 240 | 80 110 110 115 240 Overloaded Moves . | . . . . . Propulsion Burnouts . | . . . . . Robots Hopped . | . . . . . Potential Cave-ins . | . . . . . Cave-ins Triggered . | . . . . . Exploration Rate (%) 43 | 3 54 73 19 67 Regions Visited 4 Branch Regions 3 Pre-discovered Areas 1 | . . . 1 . Known Exits Taken . | . . . . . Unknown Exits Taken 4 | 1 1 1 1 . Scrap Searched 6 | . . 2 2 2 Spaces Dug . | . . . . . Terrain Destroyed . | . . . . . Melee . | . . . . . Projectile . | . . . . . AOE . | . . . . . Terrain Rammed . | . . . . . Walls Destroyed . | . . . . . Machines Disabled . | . . . . . Actions | -11 -10 -10 -10 -7 --------- Run | Yrd Mat Min Sub Scr Total 2116 | 47 323 353 313 1080 Wait 52 | . . 24 16 12 Move 1971 | 37 299 313 279 1043 Hop . | . . . . . Pick Up 24 | 5 2 2 2 13 Fast Attach 9 | 4 2 2 . 1 Attach 3 | 1 1 . 1 . Detach . | . . . . . Swap 7 | . 1 2 2 2 Drop 11 | . 1 2 . 8 Fire 35 | . 17 7 11 . Melee 4 | . . 1 2 1 Ram . | . . . . . Kick . | . . . . . Crush . | . . . . . Escape Stasis . | . . . . . Rewire . | . . . . . Trap . | . . . . . Miscellaneous . | . . . . . Route ------- -11/Scrapyard -10/Materials (discovered 2 exits: [*Mat] / [*Min]) -10/Mines (discovered 3 exits: [*Mat x2] / [*Sub]) -10/Subcaves (discovered 4 exits: [*Mat x2] / Rec / *Scr) -7/Scraptown (discovered 1 exit: [*Fac]) History --------- Turn | Location | Event 24 | -11/Scrapyard | Discovered new exit (range 14) 41 | -11/Scrapyard | Entered Materials 42 | -10/Materials | Met a group of wandering Federalists 204 | -10/Materials | Discovered new exit (range 11) 263 | -10/Materials | Discovered new exit (range 6) 320 | -10/Materials | Build established: Mutant 418 | -10/Materials | Entered Mines 456 | -10/Mines | Discovered new exit (range 9) 463 | -10/Mines | Received a Rocket Launcher from a helpful Derelict 475 | -10/Mines | Discovered new exit (range 9) 486 | -10/Mines | Received a Mining Laser from a helpful Derelict 790 | -10/Mines | Discovered new exit (range 8) 818 | -10/Mines | Entered Subcaves 818 | -10/Subcaves | Discovered new exit (range 8) 819 | -10/Subcaves | Approached by a straggling Scientist 819 | -10/Subcaves | Identified exit to Recycling 875 | -10/Subcaves | Learned Materials terminal intel 920 | -10/Subcaves | Discovered new exit (range 8) 932 | -10/Subcaves | Learned Materials emergency access door positions 940 | -10/Subcaves | Learned location of Zion (-7) 940 | -10/Subcaves | Met a Zionite searching for "candidates" 1083 | -10/Subcaves | Shifting Twisted Machinery released Battle Rifle 1087 | -10/Subcaves | Shifting Twisted Machinery released Multitool 1178 | -10/Subcaves | Core integrity fell below 50% 1200 | -10/Subcaves | Entered Scraptown 1534 | -7/Scraptown | Discovered new exit (range 13) 1651 | -7/Scraptown | Visited Spacefarers 1756 | -7/Scraptown | Visited Cyclists 1983 | -7/Scraptown | Visited IN-MT5's Study 2020 | -7/Scraptown | Visited Shadow of the Wyrm 2044 | -7/Scraptown | Visited Supply Room 2320 | -7/Scraptown | Visited UFD Registry 2320 | -7/Scraptown | Registered with UFD as "Bulletripper" 2354 | -7/Scraptown | Visited LU-1G1's Boring Crew 2440 | -7/Scraptown | Visited A0-MCA Data Center 2450 | -7/Scraptown | Given a C+ rating by A0-MCA 2453 | -7/Scraptown | Found A0-MCA's Component Scanner 2455 | -7/Scraptown | Attacked by Scraptown defenders 2461 | -7/Scraptown | Found Prototype Processor 2461 | -7/Scraptown | Identified Expert System 2501 | -7/Scraptown | Core integrity fell below 20% 2501 | -7/Scraptown | Destroyed by DZ-ZE3(x) with Makeshift Spear Last Messages --------------- A0-MCA gives you a C+! A0-MCA: Hey wait, take this scanner out into the wild, you could help me populate the wiki with accurate and detailed info to help all the others with the same adventurous spirit. My wiki is where even a lot of the Cyclists do their research too, you know. 02452_ A0-MCA drops A0-MCA's Component Scanner. 02452_ Dropped Deuterium Engine. 02453_ Acquired A0-MCA's Component Scanner. 02455_ Machine disabled. 02455_ ANNOUNCEMENT: Intruder alert! Defend Scraptown! 02460_ Dropped Structural Scanner. 02461_ Acquired Prototype Processor. 02461_ Identified Expert System. 02489_ Machine disabled. 02496_ Critical hit (Impale). 02496_ Com. Wheel destroyed. 02496_ Beam Rifle destroyed. 02500_ Lgt. Treads destroyed. [Achievement: Back For More] Map ----- +----------------------------------------------------+ | ?????????????????????????????????????????????????? | | ?????????????????????????????????????????????????? | | ?????????????????????????????????????????????????? | | ?????????????????????????????????????????????????? | | ?????????????????????????????????????????????????? | | ???????????????????????????????????????????????? | | "??????????????????????????????????????????????? | | ""?????????????????????????????????????????????? | | ""?????????????????????????????????????????????? | | ""?????????????????????????????????????????????? | | ""?????????????????????????????????????????????? | | "" ????????????????????????????????????????????? | | "" ????""?????????????????????????????????????? | | ""# ??? ????????????????????????????????????? | | ""# ??" "?????????????????????"?????????????? | | ""# ? "" ""??????????????????? "?????????????? | | ""# ?? ?????????????????? "#????????????? | | ""# ##########?"" "#????????????? | | ""###### ################"" "#????????????? | | """""""""""""""""""""""""""" "##???????????? | | """""""""""""""""""""""""""" ????????????? | | p "#????????????? | | E "#????????????? | | "#????????????? | | x #????????????? | | x@ #???????????? | | "" """"""""""" """"""" """ """""" #????????????? | | ## ########### ########### ######????????????????? | | ####" ## ??????????????????? | | # ####""" """##???? ??????????????????? | | # ####"""" """##????""" #?????????????????? | | # ####""" ! "##?????#" #?????????????????? | | ###### ####""" """##??????" #?????????????????? | | ####""" *"""##??????? #?????????????????? | | """ # ####"""""""""##???????? #?????????????????? | | "#" # ####"""""""""##?????????#?????????????????? | | """ # ####"""""""""##???????????????????????????? | | # ####"""""""""##???????????????????????????? | | ######################???????????????????????????? | | #########?###########????????????????????????????? | | ?????????????????????????????????????????????????? | | ?????????????????????????????????????????????????? | | ?????????????????????????????????????????????????? | | ?????????????????????????????????????????????????? | | ?????????????????????????????????????????????????? | | ?????????????????????????????????????????????????? | | ?????????????????????????????????????????????????? | | ?????????????????????????????????????????????????? | | ?????????????????????????????????????????????????? | | ?????????????????????????????????????????????????? | +----------------------------------------------------+ Best States ------------- Heat Dissipation 25 Energy Generation 18 Energy Capacity 310 Matter Stores 300 Matter Capacity 300 Sight Range 16 Terrain Scan Density 10 Evasion (%) 50 Recoil Reduction 1 Item Schematics ----------------- None Robot Schematics ------------------ None Fabricated ------------ Nothing Repaired ---------- Nothing Studied --------- None Alien Tech Used ----------------- None Achievements -------------- Back For More Civilization 2243 Challenges ------------ None Game ------ Seed CannonRingRailcannon Manual? 0 Play Time 00:29:35 Cumulative 96.8 hours Start 2025.12.29 @ 22:59:18 End 2025.12.29 @ 23:30:15 Sessions 1 Manual Loads 0 Difficulty Rogue Special Mode None Game No. 53 Rogue 53 Adventurer 0 Explorer 0 Win Type - Total 0 Types 0/0/0/0/0/0/0/0/0/0 Lore% 28 Gallery% 42 Achievement% 30 Wizard Run 0 Options --------- Layout 0 ASCII 0 Keyboard 0 Movement Mouse Keybinds 0 Fullscreen 2 Font 18/SmallcapsGlow Map View 38x25 Zoom Use 80% Tactical HUD 1 Map Filters NONE Filters NONE Steam 1 RUN: 9d3fef54-7019-430f-87de-866b9b610c7a